Workbook

Sheet For Help
B2: FOR HELP CLICK HERE→ (PLEASE SUBSCRIBE MY YOUTUBE CHANNEL) | D2: Click Here For Help Video
B4: आवश्यक निर्देश :-
B5: 1- शीट Itax Calculate For All Employee द्वारा किसी DDO द्वारा अपने कार्यालय में पदस्थापित सम्पूर्ण कार्मिकों (Max 100 Employees) के एक साथ Itax की गणना कर आगामी अंतिम तीन माह दिसम्बर-25, जनवरी-26 तथा फरवरी-26 माह में काटे जाने वाले Itax की गणना कर समेकित ब्यौरा तैयार कर सकते है.
B7: नोट :- हालाँकि इस प्रोग्राम को बनाते समय पूर्ण सावधानी के साथ तैयार किया गया है. मानवीय भूल सहज है. यदि किसी भी प्रकार की कोई समस्या, शंका तथा आपत्ति की स्थिति में आप अपने विवेक को प्रमुखता दें. | D7: Creator:- Ummed Tarad
D8: (GSSS RAIMALWADA, BAPINI-PHALODI)
B10: Updated On 02-11-2025

Sheet OLD REGIME (hidden)
B1: =#REF! -> 
B2: Income Tax Calculation F.Y. 2024-25 (A.Y.2025-26) | N2: Old Tax Regime
B3: 1 | C3: कर्मचारी का नाम :- | E3: =#REF! ->  | K3: पद :- | L3: =#REF! ->  | O3: PAN : | P3: =#REF! -> 
B4: 2 | C4: आय:वर्ष 2024-25 में कुल प्राप्त वेतन (कर योग्य सुविधाओं के मूल्य सहित) | P4: Rs. | Q4: =#REF! -> 
B5: 3 | C5: गृह किराया धारा 10 (13-A) के अंतर्गत एवं 10(14) के अंतर्गत वेतन भत्ते जो कर मुक्त है l | P5: Rs. | Q5: =IF(N2="old tax regime",#REF!,0) -> 
B6: 4 | C6: शेष (2-3) | P6: Rs. | Q6: =Q4-Q5 -> 
B7: 5 | C7: (i) मनोरंजन भत्ता धारा 16 (ii) के अंतर्गत (अधिकतम 5000 रूपये) | M7: =#REF! -> 
C8: (ii) व्यवसाय कर धारा 16 (iii) के अंतर्गत (अधिकतम 5000 रूपये) | M8: =#REF! -> 
C9: (iii) स्टेंडर्ड डिडक्शन (Standard Deduction)-अधिकतम 50,000 | M9: 50000.00 | P9: Rs. | Q9: =IF(N2="old tax regime",M7+M8+M9,0) -> 
B10: 6 | C10: शेष (4-5) | P10: Rs. | Q10: =Q6-Q9 -> 
B11: 7 | C11: (अ) गृह सम्पति से आय (1) स्वयं के उपयोग में शून्य | K11: (2) प्राप्त किराया | M11: =#REF! -> 
C12: (ब) घटाइए | E12: किराये का 30% | H12: गृह ऋण पर ब्याज | K12: गृहकर | M12: योग 7 (ब)
E13: =IF(N2="old tax regime",ROUND(M11*0.3,0),0) ->  | H13: =IF(N2="old tax regime",#REF!,0) ->  | K13: =IF(N2="old tax regime",#REF!,0) ->  | M13: =E13+H13+K13 -> 
C14: शेष -/+ {7(अ) एवं योग 7(ब)} | P14: Rs. | Q14: =M11-M13 -> 
B15: 8 | C15: कुल शेष -/+ (6 एवं 7) | P15: Rs. | Q15: =Q10+Q14 -> 
B16: 9 | C16: अन्य आय | D16: 9(i) | E16: =#REF! ->  | P16: Rs. | Q16: =#REF! -> 
D17: 9(ii) | E17: =#REF! ->  | Q17: =#REF! -> 
D18: 9(iii) | E18: =#REF! ->  | Q18: =#REF! -> 
C19: कुल (बिंदु संख्या -9) | Q19: =Q16+Q17+Q18 -> 
B20: 10 | C20: सकल आय योग (8+9) | P20: Rs. | Q20: =Q15+Q19 -> 
B21: 11 | C21: घटाइए कटौतियां :- धारा US 80C, 80CCC,80CCD (1)
C22: (A) अधिकतम सीमा 1.50 लाख (धारा 80 CCE) के अलावा
C23: (i) | D23: राज्य बीमा (SI) | H23: Rs. | I23: =IF(N2="old tax regime",#REF!,0) ->  | J23: (x) | K23: पेंशन प्लान हेतु अंशदान (धारा 80CCC) | N23: Rs. | O23: =IF(N2="old tax regime",#REF!,0) -> 
C24: (ii) | D24: जीवन बीमा प्रीमियम (LIC) | H24: Rs. | I24: =IF(N2="old tax regime",#REF!+#REF!,0) ->  | J24: (xi) | K24: राष्ट्रीय बचत पत्र पर अदत ब्याज | N24: Rs. | O24: =IF(N2="old tax regime",#REF!,0) -> 
C25: (iii) | D25: राष्ट्रीय बचत पत्र (NSC) | H25: Rs. | I25: =IF(N2="old tax regime",#REF!,0) ->  | J25: (xii) | K25: ट्यूशन फी | N25: Rs. | O25: =IF(N2="old tax regime",#REF!,0) -> 
C26: (iv) | D26: लोक भविष्य निधि (PPF) | H26: Rs. | I26: =IF(N2="old tax regime",#REF!,0) ->  | J26: (xiii) | K26: इक्विटी लिंक सेविंग स्कीम | N26: Rs. | O26: =IF(N2="old tax regime",#REF!,0) -> 
C27: (v) | D27: राष्ट्रीय बचत स्कीम (NSS) | H27: Rs. | I27: =IF(N2="old tax regime",#REF!,0) ->  | J27: (xv) | K27: स्थिगित वार्षिकी (Defferred Annuty) | N27: Rs. | O27: =IF(N2="old tax regime",#REF!,0) -> 
C28: (vi) | D28: GPF/GPF 2004 | H28: Rs. | I28: =IF(N2="old tax regime",#REF!,0) ->  | J28: (xiv) | K28: पी.एल.आई. (PLI) | N28: Rs. | O28: =IF(N2="old tax regime",#REF!,0) -> 
C29: (vii) | D29: सामूहिक दुर्घटना बीमा (GIS) | H29: Rs. | I29: =IF(N2="old tax regime",#REF!,0) ->  | J29: (xvi) | K29: अन्य जमा राशी (80 C धारा के अंतर्गत) | N29: Rs. | O29: =IF(N2="old tax regime",#REF!,0) -> 
C30: (viii) | D30: UPLI/वार्षिक प्लान | H30: Rs. | I30: =IF(N2="old tax regime",#REF!,0) ->  | J30: (xvii) | K30: सुकन्या समृद्धि योजना में जमा राशि | N30: Rs. | O30: =IF(N2="old tax regime",#REF!,0) -> 
C31: (ix) | D31: गृह ऋण किश्त(HBA Premium) | H31: Rs. | I31: =IF(N2="old tax regime",#REF!,0) ->  | J31: (xviii) | N31: Rs.
C32: योग (i से xvii तक) | N32: Rs. | O32: =SUM(O23:O31,I23:I31) -> 
C33: अधिकतम कटौती की राशि 1.50 लाख रूपये तक | P33: Rs. | Q33: =IF(N2="new tax regime",0,IF(O32>=150000,150000,O32)) -> 
C34: (B) घटाइए - धारा 80CCD (1B) नवीन पेंशन योजना में अतिरिक्त अंशदान (अधिकतम रु.50,000) | P34: Rs. | Q34: =IF(N2="old tax regime",#REF!,0) -> 
C35: योग 11(A+B+C) | P35: Rs. | Q35: =Q33+Q34 -> 
B36: 12 | C36: अन्य कटौतियां
C37: 1. धारा 80D - चिकित्सा बीमा प्रीमियम {स्वयं/पति/पत्नी हेतु 25,000 माता/पिता हेतु 25,000, वरिष्ठ नागरिक 50,000} | P37: Rs. | Q37: =IF(N2="old tax regime",#REF!,0) -> 
C38: 2. धारा 80DD - विकलांग आश्रितों का चिकित्सा उपचार (अधिकतम 75,000, 80% या अधिक विक्लांगता 1,25,000) | P38: Rs. | Q38: =IF(N2="old tax regime",#REF!,0) -> 
C39: 3. धारा 80DDB -विशिष्ठ रोगों के उपचार हेतु कटौती (सामान्य 40,000 एवं वरिष्ठ नागरिक 1 लाख) | P39: Rs. | Q39: =IF(N2="old tax regime",#REF!,0) -> 
C40: 4. धारा 80E - उच्च शिक्षा हेतु लिए ऋण पर ब्याज (धारा 80E) | P40: Rs. | Q40: =IF(N2="old tax regime",#REF!,0) -> 
C41: 5. धारा 80G -धर्मार्थ संस्थाओं को दिए दान (श्रेणी 'क' 100% एवं श्रेणी 'ख' 50%) | P41: Rs. | Q41: =IF(N2="old tax regime",#REF!,0) ->  | W41: >250000 | X41: >300000 | Y41: >500000 | Z41: >1000000
C42: 6. धारा 80U -स्थाई शारीरिक विक्लांगता की दशा में (अधिकतम 75,000 तथा अधिनियम 1995 के अनुसार 80% विक्लांगता 1,25,000) | P42: Rs. | Q42: =IF(N2="old tax regime",#REF!,0) ->  | W42: =IF($Q$48>1000000,1,IF($Q$48>500000,2,IF($Q$48>300000,3,IF($Q$48>250000,4,0)))) ->  | X42: =IF($Q$48>1000000,1,IF($Q$48>500000,2,IF($Q$48>300000,3,0))) ->  | Y42: =IF($Q$48>1000000,1,IF($Q$48>500000,2,0)) ->  | Z42: =IF($Q$48>1000000,1,0) -> 
C43: 7. अधिनियम 1995 के अनुसार धारा 80 TTA के तहत बचत खाते की जमा राशी पर प्राप्त ब्याज में छूट 10000 (80 TTB-वरिष्ठ नागरिक अधिकतम 50,000) | P43: Rs. | Q43: =IF(N2="old tax regime",#REF!,0) ->  | V43: A | W43: =IF(W42>=1,2500,0) ->  | X43: =IF(X42=3,ROUND((Q48-300000)*0.05,0),IF(X42=0,0,10000)) ->  | Y43: =IF(Y42=2,($Q$48-500000)*0.2,IF(Y42=1,100000,0)) ->  | Z43: =IF(Z42>0,($Q$48-1000000)*0.3,0) -> 
C44: 8. धारा 80 GGA -अनुमोदित वैज्ञानिक,सामाजिक,ग्रामीण विकास आदि हेतु दिया गया दान | P44: Rs. | Q44: =IF(N2="old tax regime",#REF!,0) ->  | V44: B | W44: 0.00 | X44: =IF(X42=3,ROUND((Q48-300000)*0.05,0),IF(X42=0,0,10000)) ->  | Y44: =IF(Y42=2,($Q$48-500000)*0.2,IF(Y42=1,100000,0)) ->  | Z44: =IF(Z42>0,($Q$48-1000000)*0.3,0) -> 
C45: कुल योग 12 (1 से 8) | P45: Rs. | Q45: =SUM(Q37:Q44) ->  | V45: C | W45: 0.00 | X45: 0.00 | Y45: =IF(Y42=2,($Q$48-500000)*0.2,IF(Y42=1,100000,0)) ->  | Z45: =IF(Z42>0,($Q$48-1000000)*0.3,0) -> 
B46: 13 | C46: कुल कटौती (11 एवं 12) | P46: Rs. | Q46: =Q35+Q45 -> 
B47: 14 | C47: कर योग्य आय (10-13) | P47: Rs. | Q47: =Q20-Q46 -> 
B48: 15 | C48: कुल आय की राशि को सम्पूर्ण करना (दस के गुणक में) धारा 288A | P48: Rs. | Q48: =ROUND(Q47,-1) ->  | T48: =#REF! ->  | U48: =#REF! ->  | V48: =CONCATENATE(T48,U48) -> 
B49: 16 | C49: उपरोक्त बिंदु 15 के आधार पर आयकर की गणना
C50: Income Slab | I50: सामान्य करदाता | K50: वरिष्ठ नागरिक (आयु 60 से 80 वर्ष) | M50: 81 वर्ष या अधिक आयु
C51: =IF($N$2="old tax regime","2,50,000 तक","3,00,000 तक") -> 2,50,000 तक | I51: =IF($N$2="old tax regime","Nil","Nil") -> Nil | K51: =IF($N$2="old tax regime","Nil","Nil") -> Nil | M51: =IF($N$2="old tax regime","Nil","Nil") -> Nil | P51: Rs. | Q51: 0.00
C52: =IF($N$2="old tax regime","2,50,001 से 3,00,000 तक","3,00,001 से 6,00,000 तक") -> 2,50,001 से 3,00,000 तक | I52: =IF($N$2="old tax regime","5%","5% (With Tax Rebate Under Sec.87A)") -> 5% | K52: =IF($N$2="old tax regime","Nil","5% (With Tax Rebate Under Sec.87A)") -> Nil | M52: =IF($N$2="old tax regime","Nil","5% (With Tax Rebate Under Sec.87A)") -> Nil | P52: Rs. | Q52: =IF(T48="a",W43,IF(T48="B",W44,W45)) -> 
C53: =IF($N$2="old tax regime","3,00,001 से 5,00,000 तक","6,00,001 से 9,00,000 तक") -> 3,00,001 से 5,00,000 तक | I53: =IF($N$2="old tax regime","5%","10% (With Tax Rebate Under Sec.87A Up to Rs. 7 Lakh.)") -> 5% | K53: =IF($N$2="old tax regime","5%","10% (With Tax Rebate Under Sec.87A Up to Rs. 7 Lakh.)") -> 5% | M53: =IF($N$2="old tax regime","Nil","10% (With Tax Rebate Under Sec.87A Up to Rs. 7 Lakh.)") -> Nil | P53: Rs. | Q53: =IF(T48="a",X43,IF(T48="B",X44,X45)) -> 
C54: =IF($N$2="old tax regime","5,00,001 से 10,00,000 तक","9,00,001 से 12,00,000 तक") -> 5,00,001 से 10,00,000 तक | I54: =IF($N$2="old tax regime","20%","15%") -> 20% | K54: =IF($N$2="old tax regime","20%","15%") -> 20% | M54: =IF($N$2="old tax regime","20%","15%") -> 20% | P54: Rs. | Q54: =IF(T48="a",Y43,IF(T48="B",Y44,Y45)) -> 
C55: =IF($N$2="old tax regime","10,00,001 अथवा इससे ऊपर","12,00,001 से 15,00,000 तक") -> 10,00,001 अथवा इससे ऊपर | I55: =IF($N$2="old tax regime","30%","20%") -> 30% | K55: =IF($N$2="old tax regime","30%","20%") -> 30% | M55: =IF($N$2="old tax regime","30%","20%") -> 30% | P55: Rs. | Q55: =IF(T48="a",Z43,IF(T48="B",Z44,Z45)) -> 
C56: =IF($N$2="old tax regime","----","15,00,001 अथवा इससे ऊपर") -> ---- | I56: =IF($N$2="old tax regime","----","30%") -> ---- | K56: =IF($N$2="old tax regime","----","30%") -> ---- | M56: =IF($N$2="old tax regime","----","30%") -> ---- | P56: Rs. | Q56: 0.00
C57: (1) योग आयकर | P57: Rs. | Q57: =SUM(Q51:Q56) -> 
C58: (2) छूट धारा 87 (A) (2.50 लाख से 5.00 लाख तक की कर योग्य आय पर आयकर की छूट अधिकतम रूपये 12,500 तक) | P58: Rs. | Q58: =IF(Q57<=12500,Q57,0) -> 
C59: (3) शेष आयकर (1-2) | P59: Rs. | Q59: =Q57-Q58 -> 
C60: (4) शिक्षा उपकर 2% एवं उच्च शिक्षा के लिए अधिभार 2% (योग 4%) | P60: Rs. | Q60: =ROUND(Q59*0.04,0) -> 
C61: कुल आयकर (3+4) | P61: Rs. | Q61: =Q59+Q60 -> 
B62: 17 | C62: घटाइए :- धारा 89 के अंतर्गत राहत Rule 21A(2) | P62: Rs. | Q62: =#REF! -> 
B63: 18 | C63: कुल शेष आयकर | P63: Rs. | Q63: =Q61-Q62 -> 
C64: कुल शेष आयकर की राशि (दस के गुणक में) | P64: Rs. | Q64: =ROUND(Q63,-1) -> 
B65: 19 | C65: आयकर कटौती का विवरण | D65: Itax deducted Till Jun-2024 (First Quarter) | F65: Itax deducted July-24 to Sep.-24 (Second Quarter) | I65: Itax deducted Oct-24 to Dec.-24 (Third Quarter) | J65: Itax Deducted/Dedctable by Dec.24 Salary | K65: Itax Deducted/Dedctable by Jan-25 Salary | L65: Itax Deducted/Dedctable by Feb-25 Salary | M65: Itax Deducted addition to Salary | O65: Itax submitted by other means | P65: बिंदु 19 का योग
D66: =SUM(#REF!) ->  | F66: =SUM(#REF!) ->  | I66: =SUM(#REF!) ->  | J66: =#REF! ->  | K66: =#REF! ->  | L66: =#REF! ->  | M66: =SUM(#REF!) ->  | O66: =#REF! ->  | P66: Rs. | Q66: =SUM(D66:O66) -> 
D67: Income Tax Refundable/Payble | L67: =IF(Q66>Q64,"(Refundable)","(Payble)") ->  | P67: Rs. | Q67: =Q66-Q64 -> 
B68: =#REF! ->  | K68: =#REF! -> 

Sheet Itax Calculate For All Emp.
D1: Prepared By :- Ummed Tarad (GSSS Raimalwada) (Updated On 20-10-2023)
D2: Govt. Sr. Sec. School………………………………………………………….
D3: Tax Calculation For All Employee For F.Y. 2025-26 (A.Y. 2026-27)
D4: Sr. No. | E4: Name Of Employee | F4: Total Income (As GA-55 Gross Salary) | G4: HRA Examption | H4: Examption Uder Home Loan | I4: Examption U/S VI [80 C/80 CCC/ 80CCD(1)] Up To 1.5 Lac | J4: Exapmtion U/S 80 CCD(1B) Up To 50000 | K4: Exapmtion U/S 80 D/80 DD/80/ 80DDB | L4: Exapmtion U/S 80 G | M4: NET TAXABLE INCOME (For Old Tax Regime) | N4: NET TAXABLE INCOME (For New Tax Regime) | O4: Income Tax (OLD TAX REGIME) | V4: Income Tax (NEW TAX REGIME) | AF4: CHOICE (Old Rate/New Rate) | AG4: जन.-2026 के वेतन तक की गई Itax कटौती | AJ4: अग्रिम शेष माह में की जाने वाली Itax कटौती | AM4: Total Deductable Itax | AO4: Payble (P), Refundable (R) Itax
M5: [Colmn 3-{4+5+6+-8+9}-Stand.Ded.50000] | N5: [Colmn 3-Stand.Ded.75000] | O5: 2.5 Lac to 5 Lac | P5: 5 Lac to 10 Lac | Q5: >10 Lac | R5: Total | S5: Edu. Cess (4%) | T5: Grand Total | U5: Round Up Value of Total Itax | V5: 4 Lac to 8 Lac | W5: 8 Lac to 12 Lac | X5: 12 Lac to 16 Lac | Y5: 16 Lac to 20 Lac | Z5: 20 Lac to 24 Lac | AA5: >24 Lac | AB5: Total | AC5: Edu. Cess (4%) | AD5: Grand Total | AE5: Round Up Value of Total Itax | AG5: From Salary | AH5: Via Challan | AI5: Total | AJ5: =IF(AG4="नव.-2025 के वेतन तक की गई Itax कटौती","Dec-25",0) -> 00:00:00 | AK5: =IF(AG4="नव.-2025 के वेतन तक की गई Itax कटौती","Jan-26",0) -> 00:00:00 | AL5: 2026-02-01
D6: 1 | E6: 2 | F6: 3 | G6: 4 | H6: 5 | I6: 6 | J6: 7 | K6: 8 | L6: 9 | M6: 10 | N6: 11 | O6: 10 | P6: 11 | Q6: 12 | R6: 13 | S6: 14 | T6: 15 | U6: 12 | V6: 17 | W6: 18 | X6: 19 | AA6: 21 | AB6: 22 | AC6: 23 | AD6: 24 | AE6: 13 | AF6: 14 | AG6: 15 | AJ6: 16 | AK6: 17 | AL6: 18 | AM6: 19 | AO6: 20 | AR6: old | AX6: new
A7: =MIN(U7,AE7) -> 52000 | B7: =IF(F7=0,0,IF(OR(U7=0,AE7=0),"NT",0)) -> 0 | D7: 1 | E7: A | F7: 1325000 | G7: 0 | H7: 0 | I7: 111406 | J7: 0 | K7: 0 | L7: 0 | M7: =F7-50000-G7-H7-I7-J7-K7-L7 -> 1163594 | N7: =F7-75000 -> 1250000 | O7: =IF(M7<250000,0,IF(M7>500000,12500,IF(M7<500000,ROUND((M7-250000)*0.05,0),0))) -> 12500 | P7: =IF(M7<500000,0,IF(M7>1000000,100000,ROUND((M7-500000)*0.2,0))) -> 100000 | Q7: =IF(M7<1000000,0,ROUND((M7-1000000)*0.3,0)) -> 49078 | R7: =IF(F7="","",IF(SUM(O7:Q7)<=12500,0,SUM(O7:Q7))) -> 161578 | S7: =IF(R7="","",ROUND(R7*0.04,0)) -> 6463 | T7: =IF(R7="","",R7+S7) -> 168041 | U7: =IF(R7="","",ROUNDUP(T7,-2)) -> 168100 | V7: =IF(N7>800000,20000,IF(N7>400000,(N7-400000)*0.05,0)) -> 20000 | W7: =IF(N7>1200000,40000,IF(N7>800000,(N7-800000)*0.1,0)) -> 40000 | X7: =IF(N7>1600000,60000,IF(N7>1200000,(N7-1200000)*0.15,0)) -> 7500 | Y7: =IF(N7>2000000,80000,IF(N7>1600000,(N7-1600000)*0.2,0)) -> 0 | Z7: =IF(O7>2400000,100000,IF(O7>2000000,(O7-2000000)*0.25,0)) -> 0 | AA7: =IF(N7<2400000,0,(N7-2400000)*0.3) -> 0 | AB7: =IF(F7="","",IF(SUM(V7:AA7)<=60000,0,IF((N7-1200000)<SUM(V7:AA7),(N7-1200000),(SUM(V7:AA7))))) -> 50000 | AC7: =IF(F7="","",ROUND(AB7*0.04,0)) -> 2000 | AD7: =IF(F7="","",(AB7+AC7)) -> 52000 | AE7: =IF(F7="","",ROUNDUP(AD7,-2)) -> 52000 | AF7: =IF(F7="","",IF(F7="","",IF(U7=0,0,IF(U7>AE7,"New Regime","Old Regime")))) -> New Regime | AG7: 48000 | AI7: =AG7+AH7 -> 48000 | AJ7: =IF(OR(U7=0,AE7=0),0,IF(AF7="Old Regime",AR7,AX7)) -> 2000 | AK7: =IF(OR(U7=0,AE7=0),0,IF(AF7="Old Regime",AS7,AY7)) -> 2000 | AL7: =IF(OR(U7=0,AE7=0),0,IF(AF7="Old Regime",AT7,AZ7)) -> 2000 | AM7: =AJ7+AK7+AL7 -> 6000 | AN7: =IF(AF7="Old Regime",U7,AE7) -> 52000 | AO7: =IF(AN7<=12500,-AI7,AN7-(AI7+AM7)) -> -2000 | AP7: =IF(AO7=0,0,IF(AO7>0,"(P)","(R)")) -> (R) | AR7: =IF($AG$4="जन.-2025 के वेतन तक की गई Itax कटौती",0,IF(U7<=12500,0,IF(AI7>U7,0,ROUNDUP((U7-AI7)/3,-3)))) -> 41000 | AS7: =IF($AG$4="जन.-2025 के वेतन तक की गई Itax कटौती",0,IF(U7<=12500,0,IF(AI7>U7,0,ROUNDUP((U7-AI7)/3,-3)))) -> 41000 | AT7: =IF($AG$4="जन.-2025 के वेतन तक की गई Itax कटौती",ROUNDUP((U7-AI7),-3),IF(U7<=12500,0,IF(AI7>U7,0,ROUNDUP((U7-AI7)/3,-3)))) -> 41000 | AU7: =ROUNDUP(AR7+AS7+AT7,-3) -> 123000 | AV7: =AU7+AI7 -> 171000 | AW7: =AV7-U7 -> 2900 | AX7: =IF($AG$4="जन.-2025 के वेतन तक की गई Itax कटौती",0,IF(AE7<=12500,0,IF(AI7>AE7,0,ROUNDUP((AE7-AI7)/3,-3)))) -> 2000 | AY7: =IF($AG$4="जन.-2025 के वेतन तक की गई Itax कटौती",0,IF(AE7<=12500,0,IF(AI7>AE7,0,ROUNDUP((AE7-AI7)/3,-3)))) -> 2000 | AZ7: =IF($AG$4="जन.-2025 के वेतन तक की गई Itax कटौती",ROUNDUP((AE7-AI7),-3),IF(AE7<=12500,0,IF(AI7>AE7,0,ROUNDUP((AE7-AI7)/3,-3)))) -> 2000 | BA7: =ROUNDUP(AX7+AY7+AZ7,-3) -> 6000 | BB7: =BA7+AI7 -> 54000 | BC7: =BB7-AE7 -> 2000
A8: =MIN(U8,AE8) -> 0 | B8: NT | D8: 2 | E8: B | F8: 777200 | M8: =F8-50000-G8-H8-I8-J8-K8-L8 -> 727200 | N8: =F8-75000 -> 702200 | O8: =IF(M8<250000,0,IF(M8>500000,12500,IF(M8<500000,ROUND((M8-250000)*0.05,0),0))) -> 12500 | P8: =IF(M8<500000,0,IF(M8>1000000,100000,ROUND((M8-500000)*0.2,0))) -> 45440 | Q8: =IF(M8<1000000,0,ROUND((M8-1000000)*0.3,0)) -> 0 | R8: 57940 | S8: =IF(R8="","",ROUND(R8*0.04,0)) -> 2318 | T8: =IF(R8="","",R8+S8) -> 60258 | U8: =IF(R8="","",ROUNDUP(T8,-2)) -> 60300 | V8: =IF(N8>800000,20000,IF(N8>400000,(N8-400000)*0.05,0)) -> 15110 | W8: =IF(N8>1200000,40000,IF(N8>800000,(N8-800000)*0.1,0)) -> 0 | X8: =IF(N8>1600000,60000,IF(N8>1200000,(N8-1200000)*0.15,0)) -> 0 | Y8: =IF(N8>2000000,80000,IF(N8>1600000,(N8-1600000)*0.2,0)) -> 0 | Z8: =IF(O8>2400000,100000,IF(O8>2000000,(O8-2000000)*0.25,0)) -> 0 | AA8: =IF(N8<2400000,0,(N8-2400000)*0.3) -> 0 | AB8: =IF(F8="","",IF(SUM(V8:AA8)<=60000,0,IF((N8-1200000)<SUM(V8:AA8),(N8-1200000),(SUM(V8:AA8))))) -> 0 | AC8: 0 | AD8: 0 | AE8: 0 | AF8: New Regime | AI8: =AG8+AH8 -> 0 | AJ8: =IF(OR(U8=0,AE8=0),0,IF(AF8="Old Regime",AR8,AX8)) -> 0 | AK8: =IF(OR(U8=0,AE8=0),0,IF(AF8="Old Regime",AS8,AY8)) -> 0 | AL8: =IF(OR(U8=0,AE8=0),0,IF(AF8="Old Regime",AT8,AZ8)) -> 0 | AM8: =AJ8+AK8+AL8 -> 0 | AN8: =IF(AF8="Old Regime",U8,AE8) -> 0 | AO8: =IF(AN8<=12500,-AI8,AN8-(AI8+AM8)) -> 0 | AP8: =IF(AO8=0,0,IF(AO8>0,"(P)","(R)")) -> 0 | AR8: =IF($AG$4="जन.-2025 के वेतन तक की गई Itax कटौती",0,IF(U8<=12500,0,IF(AI8>U8,0,ROUNDUP((U8-AI8)/3,-3)))) -> 21000 | AS8: =IF($AG$4="जन.-2025 के वेतन तक की गई Itax कटौती",0,IF(U8<=12500,0,IF(AI8>U8,0,ROUNDUP((U8-AI8)/3,-3)))) -> 21000 | AT8: =IF($AG$4="जन.-2025 के वेतन तक की गई Itax कटौती",ROUNDUP((U8-AI8),-3),IF(U8<=12500,0,IF(AI8>U8,0,ROUNDUP((U8-AI8)/3,-3)))) -> 21000 | AU8: =ROUNDUP(AR8+AS8+AT8,-3) -> 63000 | AV8: =AU8+AI8 -> 63000 | AW8: =AV8-U8 -> 2700 | AX8: =IF($AG$4="जन.-2025 के वेतन तक की गई Itax कटौती",0,IF(AE8<=12500,0,IF(AI8>AE8,0,ROUNDUP((AE8-AI8)/3,-3)))) -> 0 | AY8: =IF($AG$4="जन.-2025 के वेतन तक की गई Itax कटौती",0,IF(AE8<=12500,0,IF(AI8>AE8,0,ROUNDUP((AE8-AI8)/3,-3)))) -> 0 | AZ8: =IF($AG$4="जन.-2025 के वेतन तक की गई Itax कटौती",ROUNDUP((AE8-AI8),-3),IF(AE8<=12500,0,IF(AI8>AE8,0,ROUNDUP((AE8-AI8)/3,-3)))) -> 0 | BA8: =ROUNDUP(AX8+AY8+AZ8,-3) -> 0 | BB8: =BA8+AI8 -> 0 | BC8: =BB8-AE8 -> 0
A9: 0 | B9: 0 | D9: 3 | M9: -50000 | N9: -75000 | O9: 0 | P9: 0 | Q9: 0 | V9: 0 | W9: 0 | X9: 0 | Y9: 0 | Z9: 0 | AA9: 0 | AI9: 0
A10: 0 | B10: 0 | D10: 4 | M10: -50000 | N10: -75000 | O10: 0 | P10: 0 | Q10: 0 | V10: 0 | W10: 0 | X10: 0 | Y10: 0 | Z10: 0 | AA10: 0 | AI10: 0
A11: 0 | B11: 0 | D11: 5 | M11: -50000 | N11: -75000 | O11: 0 | P11: 0 | Q11: 0 | V11: 0 | W11: 0 | X11: 0 | Y11: 0 | Z11: 0 | AA11: 0 | AI11: 0
A12: 0 | B12: 0 | D12: 6 | M12: -50000 | N12: -75000 | O12: 0 | P12: 0 | Q12: 0 | V12: 0 | W12: 0 | X12: 0 | Y12: 0 | Z12: 0 | AA12: 0 | AI12: 0
A13: 0 | B13: 0 | D13: 7 | M13: -50000 | N13: -75000 | O13: 0 | P13: 0 | Q13: 0 | V13: 0 | W13: 0 | X13: 0 | Y13: 0 | Z13: 0 | AA13: 0 | AI13: 0
A14: 0 | B14: 0 | D14: 8 | M14: -50000 | N14: -75000 | O14: 0 | P14: 0 | Q14: 0 | V14: 0 | W14: 0 | X14: 0 | Y14: 0 | Z14: 0 | AA14: 0 | AI14: 0
A15: 0 | B15: 0 | D15: 9 | M15: -50000 | N15: -75000 | O15: 0 | P15: 0 | Q15: 0 | V15: 0 | W15: 0 | X15: 0 | Y15: 0 | Z15: 0 | AA15: 0 | AI15: 0
A16: 0 | B16: 0 | D16: 10 | M16: -50000 | N16: -75000 | O16: 0 | P16: 0 | Q16: 0 | V16: 0 | W16: 0 | X16: 0 | Y16: 0 | Z16: 0 | AA16: 0 | AI16: 0
A17: 0 | B17: 0 | D17: 11 | M17: -50000 | N17: -75000 | O17: 0 | P17: 0 | Q17: 0 | V17: 0 | W17: 0 | X17: 0 | Y17: 0 | Z17: 0 | AA17: 0 | AI17: 0
A18: 0 | B18: 0 | D18: 12 | M18: -50000 | N18: -75000 | O18: 0 | P18: 0 | Q18: 0 | V18: 0 | W18: 0 | X18: 0 | Y18: 0 | Z18: 0 | AA18: 0 | AI18: 0
A19: 0 | B19: 0 | D19: 13 | M19: -50000 | N19: -75000 | O19: 0 | P19: 0 | Q19: 0 | V19: 0 | W19: 0 | X19: 0 | Y19: 0 | Z19: 0 | AA19: 0 | AI19: 0
A20: 0 | B20: 0 | D20: 14 | M20: -50000 | N20: -75000 | O20: 0 | P20: 0 | Q20: 0 | V20: 0 | W20: 0 | X20: 0 | Y20: 0 | Z20: 0 | AA20: 0 | AI20: 0
A21: 0 | B21: 0 | D21: 15 | M21: -50000 | N21: -75000 | O21: 0 | P21: 0 | Q21: 0 | V21: 0 | W21: 0 | X21: 0 | Y21: 0 | Z21: 0 | AA21: 0 | AI21: 0
A22: 0 | B22: 0 | D22: 16 | M22: -50000 | N22: -75000 | O22: 0 | P22: 0 | Q22: 0 | V22: 0 | W22: 0 | X22: 0 | Y22: 0 | Z22: 0 | AA22: 0 | AI22: 0
A23: 0 | B23: 0 | D23: 17 | M23: -50000 | N23: -75000 | O23: 0 | P23: 0 | Q23: 0 | V23: 0 | W23: 0 | X23: 0 | Y23: 0 | Z23: 0 | AA23: 0 | AI23: 0
A24: 0 | B24: 0 | D24: 18 | M24: -50000 | N24: -75000 | O24: 0 | P24: 0 | Q24: 0 | V24: 0 | W24: 0 | X24: 0 | Y24: 0 | Z24: 0 | AA24: 0 | AI24: 0
A25: 0 | B25: 0 | D25: 19 | M25: -50000 | N25: -75000 | O25: 0 | P25: 0 | Q25: 0 | V25: 0 | W25: 0 | X25: 0 | Y25: 0 | Z25: 0 | AA25: 0 | AI25: 0
A26: 0 | B26: 0 | D26: 20 | M26: -50000 | N26: -75000 | O26: 0 | P26: 0 | Q26: 0 | V26: 0 | W26: 0 | X26: 0 | Y26: 0 | Z26: 0 | AA26: 0 | AI26: 0
A27: 0 | B27: 0 | D27: 21 | M27: -50000 | N27: -75000 | O27: 0 | P27: 0 | Q27: 0 | V27: 0 | W27: 0 | X27: 0 | Y27: 0 | Z27: 0 | AA27: 0 | AI27: 0
A28: 0 | B28: 0 | D28: 22 | M28: -50000 | N28: -75000 | O28: 0 | P28: 0 | Q28: 0 | V28: 0 | W28: 0 | X28: 0 | Y28: 0 | Z28: 0 | AA28: 0 | AI28: 0
A29: 0 | B29: 0 | D29: 23 | M29: -50000 | N29: -75000 | O29: 0 | P29: 0 | Q29: 0 | V29: 0 | W29: 0 | X29: 0 | Y29: 0 | Z29: 0 | AA29: 0 | AI29: 0
A30: 0 | B30: 0 | D30: 24 | M30: -50000 | N30: -75000 | O30: 0 | P30: 0 | Q30: 0 | V30: 0 | W30: 0 | X30: 0 | Y30: 0 | Z30: 0 | AA30: 0 | AI30: 0
A31: 0 | B31: 0 | D31: 25 | M31: -50000 | N31: -75000 | O31: 0 | P31: 0 | Q31: 0 | V31: 0 | W31: 0 | X31: 0 | Y31: 0 | Z31: 0 | AA31: 0 | AI31: 0
A32: 0 | B32: 0 | D32: 26 | M32: -50000 | N32: -75000 | O32: 0 | P32: 0 | Q32: 0 | V32: 0 | W32: 0 | X32: 0 | Y32: 0 | Z32: 0 | AA32: 0 | AI32: 0
A33: 0 | B33: 0 | D33: 27 | M33: -50000 | N33: -75000 | O33: 0 | P33: 0 | Q33: 0 | V33: 0 | W33: 0 | X33: 0 | Y33: 0 | Z33: 0 | AA33: 0 | AI33: 0
A34: 0 | B34: 0 | D34: 28 | M34: -50000 | N34: -75000 | O34: 0 | P34: 0 | Q34: 0 | V34: 0 | W34: 0 | X34: 0 | Y34: 0 | Z34: 0 | AA34: 0 | AI34: 0
A35: 0 | B35: 0 | D35: 29 | M35: -50000 | N35: -75000 | O35: 0 | P35: 0 | Q35: 0 | V35: 0 | W35: 0 | X35: 0 | Y35: 0 | Z35: 0 | AA35: 0 | AI35: 0
A36: 0 | B36: 0 | D36: 30 | M36: -50000 | N36: -75000 | O36: 0 | P36: 0 | Q36: 0 | V36: 0 | W36: 0 | X36: 0 | Y36: 0 | Z36: 0 | AA36: 0 | AI36: 0
A37: 0 | B37: 0 | D37: 31 | M37: -50000 | N37: -75000 | O37: 0 | P37: 0 | Q37: 0 | V37: 0 | W37: 0 | X37: 0 | Y37: 0 | Z37: 0 | AA37: 0 | AI37: 0
A38: 0 | B38: 0 | D38: 32 | M38: -50000 | N38: -75000 | O38: 0 | P38: 0 | Q38: 0 | V38: 0 | W38: 0 | X38: 0 | Y38: 0 | Z38: 0 | AA38: 0 | AI38: 0
A39: 0 | B39: =IF(F39=0,0,IF(OR(U39=0,AE39=0),"NT",0)) -> 0 | D39: 33 | M39: -50000 | N39: -75000 | O39: 0 | P39: 0 | Q39: 0 | R39: =IF(F39="","",IF(SUM(O39:Q39)<=12500,0,SUM(O39:Q39))) ->  | V39: 0 | W39: 0 | X39: 0 | Y39: 0 | Z39: 0 | AA39: 0 | AC39: =IF(F39="","",ROUND(AB39*0.04,0)) ->  | AD39: =IF(F39="","",(AB39+AC39)) ->  | AE39: =IF(F39="","",ROUNDUP(AD39,-2)) ->  | AF39: =IF(F39="","",IF(F39="","",IF(U39=0,0,IF(U39>AE39,"New Regime","Old Regime")))) ->  | AI39: 0
A40: 0 | B40: 0 | D40: 34 | M40: -50000 | N40: -75000 | O40: 0 | P40: 0 | Q40: 0 | V40: 0 | W40: 0 | X40: 0 | Y40: 0 | Z40: 0 | AA40: 0 | AI40: 0
A41: 0 | B41: 0 | D41: 35 | M41: -50000 | N41: -75000 | O41: 0 | P41: 0 | Q41: 0 | V41: 0 | W41: 0 | X41: 0 | Y41: 0 | Z41: 0 | AA41: 0 | AI41: 0
A42: 0 | B42: 0 | D42: 36 | M42: -50000 | N42: -75000 | O42: 0 | P42: 0 | Q42: 0 | V42: 0 | W42: 0 | X42: 0 | Y42: 0 | Z42: 0 | AA42: 0 | AI42: 0
A43: 0 | B43: 0 | D43: 37 | M43: -50000 | N43: -75000 | O43: 0 | P43: 0 | Q43: 0 | V43: 0 | W43: 0 | X43: 0 | Y43: 0 | Z43: 0 | AA43: 0 | AI43: 0
A44: 0 | B44: 0 | D44: 38 | M44: -50000 | N44: -75000 | O44: 0 | P44: 0 | Q44: 0 | V44: 0 | W44: 0 | X44: 0 | Y44: 0 | Z44: 0 | AA44: 0 | AI44: 0
A45: 0 | B45: 0 | D45: 39 | M45: -50000 | N45: -75000 | O45: 0 | P45: 0 | Q45: 0 | V45: 0 | W45: 0 | X45: 0 | Y45: 0 | Z45: 0 | AA45: 0 | AI45: 0
A46: 0 | B46: 0 | M46: -50000 | N46: -75000 | O46: 0 | P46: 0 | Q46: 0 | V46: 0 | W46: 0 | X46: 0 | Y46: 0 | Z46: 0 | AA46: 0 | AI46: 0
A47: 0 | B47: 0 | M47: -50000 | N47: -75000 | O47: 0 | P47: 0 | Q47: 0 | V47: 0 | W47: 0 | X47: 0 | Y47: 0 | Z47: 0 | AA47: 0 | AI47: 0
A48: 0 | B48: 0 | M48: -50000 | N48: -75000 | O48: 0 | P48: 0 | Q48: 0 | V48: 0 | W48: 0 | X48: 0 | Y48: 0 | Z48: 0 | AA48: 0 | AI48: 0
A49: 0 | B49: 0 | M49: -50000 | N49: -75000 | O49: 0 | P49: 0 | Q49: 0 | V49: 0 | W49: 0 | X49: 0 | Y49: 0 | Z49: 0 | AA49: 0 | AI49: 0
A50: 0 | B50: 0 | M50: -50000 | N50: -75000 | O50: 0 | P50: 0 | Q50: 0 | V50: 0 | W50: 0 | X50: 0 | Y50: 0 | Z50: 0 | AA50: 0 | AI50: 0
A51: 0 | B51: 0 | M51: -50000 | N51: -75000 | O51: 0 | P51: 0 | Q51: 0 | V51: 0 | W51: 0 | X51: 0 | Y51: 0 | Z51: 0 | AA51: 0 | AI51: 0
A52: 0 | B52: 0 | M52: -50000 | N52: -75000 | O52: 0 | P52: 0 | Q52: 0 | V52: 0 | W52: 0 | X52: 0 | Y52: 0 | Z52: 0 | AA52: 0 | AI52: 0
A53: 0 | B53: 0 | M53: -50000 | N53: -75000 | O53: 0 | P53: 0 | Q53: 0 | V53: 0 | W53: 0 | X53: 0 | Y53: 0 | Z53: 0 | AA53: 0 | AI53: 0
A54: 0 | B54: 0 | M54: -50000 | N54: -75000 | O54: 0 | P54: 0 | Q54: 0 | V54: 0 | W54: 0 | X54: 0 | Y54: 0 | Z54: 0 | AA54: 0 | AI54: 0
A55: 0 | B55: 0 | M55: -50000 | N55: -75000 | O55: 0 | P55: 0 | Q55: 0 | V55: 0 | W55: 0 | X55: 0 | Y55: 0 | Z55: 0 | AA55: 0 | AI55: 0
A56: 0 | B56: 0 | M56: -50000 | N56: -75000 | O56: 0 | P56: 0 | Q56: 0 | V56: 0 | W56: 0 | X56: 0 | Y56: 0 | Z56: 0 | AA56: 0 | AI56: 0
A57: 0 | B57: 0 | M57: -50000 | N57: -75000 | O57: 0 | P57: 0 | Q57: 0 | V57: 0 | W57: 0 | X57: 0 | Y57: 0 | Z57: 0 | AA57: 0 | AI57: 0
A58: 0 | B58: 0 | M58: -50000 | N58: -75000 | O58: 0 | P58: 0 | Q58: 0 | V58: 0 | W58: 0 | X58: 0 | Y58: 0 | Z58: 0 | AA58: 0 | AI58: 0
A59: 0 | B59: 0 | M59: -50000 | N59: -75000 | O59: 0 | P59: 0 | Q59: 0 | V59: 0 | W59: 0 | X59: 0 | Y59: 0 | Z59: 0 | AA59: 0 | AI59: 0
A60: 0 | B60: 0 | M60: -50000 | N60: -75000 | O60: 0 | P60: 0 | Q60: 0 | V60: 0 | W60: 0 | X60: 0 | Y60: 0 | Z60: 0 | AA60: 0 | AI60: 0
A61: 0 | B61: 0 | M61: -50000 | N61: -75000 | O61: 0 | P61: 0 | Q61: 0 | V61: 0 | W61: 0 | X61: 0 | Y61: 0 | Z61: 0 | AA61: 0 | AI61: 0
A62: 0 | B62: 0 | M62: -50000 | N62: -75000 | O62: 0 | P62: 0 | Q62: 0 | V62: 0 | W62: 0 | X62: 0 | Y62: 0 | Z62: 0 | AA62: 0 | AI62: 0
A63: 0 | B63: 0 | M63: -50000 | N63: -75000 | O63: 0 | P63: 0 | Q63: 0 | V63: 0 | W63: 0 | X63: 0 | Y63: 0 | Z63: 0 | AA63: 0 | AI63: 0
A64: 0 | B64: 0 | M64: -50000 | N64: -75000 | O64: 0 | P64: 0 | Q64: 0 | V64: 0 | W64: 0 | X64: 0 | Y64: 0 | Z64: 0 | AA64: 0 | AI64: 0
A65: 0 | B65: 0 | M65: -50000 | N65: -75000 | O65: 0 | P65: 0 | Q65: 0 | V65: 0 | W65: 0 | X65: 0 | Y65: 0 | Z65: 0 | AA65: 0 | AI65: 0
A66: 0 | B66: 0 | M66: -50000 | N66: -75000 | O66: 0 | P66: 0 | Q66: 0 | V66: 0 | W66: 0 | X66: 0 | Y66: 0 | Z66: 0 | AA66: 0 | AI66: 0
A67: 0 | B67: 0 | M67: -50000 | N67: -75000 | O67: 0 | P67: 0 | Q67: 0 | V67: 0 | W67: 0 | X67: 0 | Y67: 0 | Z67: 0 | AA67: 0 | AI67: 0
A68: 0 | B68: 0 | M68: -50000 | N68: -75000 | O68: 0 | P68: 0 | Q68: 0 | V68: 0 | W68: 0 | X68: 0 | Y68: 0 | Z68: 0 | AA68: 0 | AI68: 0
A69: 0 | B69: 0 | M69: -50000 | N69: -75000 | O69: 0 | P69: 0 | Q69: 0 | V69: 0 | W69: 0 | X69: 0 | Y69: 0 | Z69: 0 | AA69: 0 | AI69: 0
A70: 0 | B70: 0 | M70: -50000 | N70: -75000 | O70: 0 | P70: 0 | Q70: 0 | V70: 0 | W70: 0 | X70: 0 | Y70: 0 | Z70: 0 | AA70: 0 | AI70: 0
A71: 0 | B71: =IF(F71=0,0,IF(OR(U71=0,AE71=0),"NT",0)) -> 0 | M71: -50000 | N71: -75000 | O71: 0 | P71: 0 | Q71: 0 | R71: =IF(F71="","",IF(SUM(O71:Q71)<=12500,0,SUM(O71:Q71))) ->  | V71: 0 | W71: 0 | X71: 0 | Y71: 0 | Z71: 0 | AA71: 0 | AC71: =IF(F71="","",ROUND(AB71*0.04,0)) ->  | AD71: =IF(F71="","",(AB71+AC71)) ->  | AE71: =IF(F71="","",ROUNDUP(AD71,-2)) ->  | AF71: =IF(F71="","",IF(F71="","",IF(U71=0,0,IF(U71>AE71,"New Regime","Old Regime")))) ->  | AI71: 0
A72: =MIN(U72,AE72) -> 0 | B72: 0 | M72: =F72-50000-G72-H72-I72-J72-K72-L72 -> -50000 | N72: =F72-75000 -> -75000 | O72: =IF(M72<250000,0,IF(M72>500000,12500,IF(M72<500000,ROUND((M72-250000)*0.05,0),0))) -> 0 | P72: =IF(M72<500000,0,IF(M72>1000000,100000,ROUND((M72-500000)*0.2,0))) -> 0 | Q72: =IF(M72<1000000,0,ROUND((M72-1000000)*0.3,0)) -> 0 | S72: =IF(R72="","",ROUND(R72*0.04,0)) ->  | T72: =IF(R72="","",R72+S72) ->  | U72: =IF(R72="","",ROUNDUP(T72,-2)) ->  | V72: =IF(N72>800000,20000,IF(N72>400000,(N72-400000)*0.05,0)) -> 0 | W72: =IF(N72>1200000,40000,IF(N72>800000,(N72-800000)*0.1,0)) -> 0 | X72: =IF(N72>1600000,60000,IF(N72>1200000,(N72-1200000)*0.15,0)) -> 0 | Y72: =IF(N72>2000000,80000,IF(N72>1600000,(N72-1600000)*0.2,0)) -> 0 | Z72: =IF(O72>2400000,100000,IF(O72>2000000,(O72-2000000)*0.25,0)) -> 0 | AA72: =IF(N72<2400000,0,(N72-2400000)*0.3) -> 0 | AB72: =IF(F72="","",IF(SUM(V72:AA72)<=60000,0,IF((N72-1200000)<SUM(V72:AA72),(N72-1200000),(SUM(V72:AA72))))) ->  | AI72: =AG72+AH72 -> 0 | AJ72: =IF(OR(U72=0,AE72=0),0,IF(AF72="Old Regime",AR72,AX72)) ->  | AK72: =IF(OR(U72=0,AE72=0),0,IF(AF72="Old Regime",AS72,AY72)) ->  | AL72: =IF(OR(U72=0,AE72=0),0,IF(AF72="Old Regime",AT72,AZ72)) ->  | AM72: =AJ72+AK72+AL72 ->  | AN72: =IF(AF72="Old Regime",U72,AE72) ->  | AO72: =IF(AN72<=12500,-AI72,AN72-(AI72+AM72)) ->  | AP72: =IF(AO72=0,0,IF(AO72>0,"(P)","(R)")) ->  | AR72: =IF($AG$4="जन.-2025 के वेतन तक की गई Itax कटौती",0,IF(U72<=12500,0,IF(AI72>U72,0,ROUNDUP((U72-AI72)/3,-3)))) ->  | AS72: =IF($AG$4="जन.-2025 के वेतन तक की गई Itax कटौती",0,IF(U72<=12500,0,IF(AI72>U72,0,ROUNDUP((U72-AI72)/3,-3)))) ->  | AT72: =IF($AG$4="जन.-2025 के वेतन तक की गई Itax कटौती",ROUNDUP((U72-AI72),-3),IF(U72<=12500,0,IF(AI72>U72,0,ROUNDUP((U72-AI72)/3,-3)))) ->  | AU72: =ROUNDUP(AR72+AS72+AT72,-3) ->  | AV72: =AU72+AI72 ->  | AW72: =AV72-U72 ->  | AX72: =IF($AG$4="जन.-2025 के वेतन तक की गई Itax कटौती",0,IF(AE72<=12500,0,IF(AI72>AE72,0,ROUNDUP((AE72-AI72)/3,-3)))) ->  | AY72: =IF($AG$4="जन.-2025 के वेतन तक की गई Itax कटौती",0,IF(AE72<=12500,0,IF(AI72>AE72,0,ROUNDUP((AE72-AI72)/3,-3)))) ->  | AZ72: =IF($AG$4="जन.-2025 के वेतन तक की गई Itax कटौती",ROUNDUP((AE72-AI72),-3),IF(AE72<=12500,0,IF(AI72>AE72,0,ROUNDUP((AE72-AI72)/3,-3)))) ->  | BA72: =ROUNDUP(AX72+AY72+AZ72,-3) ->  | BB72: =BA72+AI72 ->  | BC72: =BB72-AE72 -> 
A73: 0 | B73: 0 | M73: -50000 | N73: -75000 | O73: 0 | P73: 0 | Q73: 0 | V73: 0 | W73: 0 | X73: 0 | Y73: 0 | Z73: 0 | AA73: 0 | AI73: 0
A74: 0 | B74: 0 | M74: -50000 | N74: -75000 | O74: 0 | P74: 0 | Q74: 0 | V74: 0 | W74: 0 | X74: 0 | Y74: 0 | Z74: 0 | AA74: 0 | AI74: 0
A75: 0 | B75: 0 | M75: -50000 | N75: -75000 | O75: 0 | P75: 0 | Q75: 0 | V75: 0 | W75: 0 | X75: 0 | Y75: 0 | Z75: 0 | AA75: 0 | AI75: 0
A76: 0 | B76: 0 | M76: -50000 | N76: -75000 | O76: 0 | P76: 0 | Q76: 0 | V76: 0 | W76: 0 | X76: 0 | Y76: 0 | Z76: 0 | AA76: 0 | AI76: 0
A77: 0 | B77: 0 | M77: -50000 | N77: -75000 | O77: 0 | P77: 0 | Q77: 0 | V77: 0 | W77: 0 | X77: 0 | Y77: 0 | Z77: 0 | AA77: 0 | AI77: 0
A78: 0 | B78: 0 | M78: -50000 | N78: -75000 | O78: 0 | P78: 0 | Q78: 0 | V78: 0 | W78: 0 | X78: 0 | Y78: 0 | Z78: 0 | AA78: 0 | AI78: 0
A79: 0 | B79: 0 | M79: -50000 | N79: -75000 | O79: 0 | P79: 0 | Q79: 0 | V79: 0 | W79: 0 | X79: 0 | Y79: 0 | Z79: 0 | AA79: 0 | AI79: 0
A80: 0 | B80: 0 | M80: -50000 | N80: -75000 | O80: 0 | P80: 0 | Q80: 0 | V80: 0 | W80: 0 | X80: 0 | Y80: 0 | Z80: 0 | AA80: 0 | AI80: 0
A81: 0 | B81: 0 | M81: -50000 | N81: -75000 | O81: 0 | P81: 0 | Q81: 0 | V81: 0 | W81: 0 | X81: 0 | Y81: 0 | Z81: 0 | AA81: 0 | AI81: 0
A82: 0 | B82: 0 | M82: -50000 | N82: -75000 | O82: 0 | P82: 0 | Q82: 0 | V82: 0 | W82: 0 | X82: 0 | Y82: 0 | Z82: 0 | AA82: 0 | AI82: 0
A83: 0 | B83: 0 | M83: -50000 | N83: -75000 | O83: 0 | P83: 0 | Q83: 0 | V83: 0 | W83: 0 | X83: 0 | Y83: 0 | Z83: 0 | AA83: 0 | AI83: 0
A84: 0 | B84: 0 | M84: -50000 | N84: -75000 | O84: 0 | P84: 0 | Q84: 0 | V84: 0 | W84: 0 | X84: 0 | Y84: 0 | Z84: 0 | AA84: 0 | AI84: 0
A85: 0 | B85: 0 | M85: -50000 | N85: -75000 | O85: 0 | P85: 0 | Q85: 0 | V85: 0 | W85: 0 | X85: 0 | Y85: 0 | Z85: 0 | AA85: 0 | AI85: 0
A86: 0 | B86: 0 | M86: -50000 | N86: -75000 | O86: 0 | P86: 0 | Q86: 0 | V86: 0 | W86: 0 | X86: 0 | Y86: 0 | Z86: 0 | AA86: 0 | AI86: 0
A87: 0 | B87: 0 | M87: -50000 | N87: -75000 | O87: 0 | P87: 0 | Q87: 0 | V87: 0 | W87: 0 | X87: 0 | Y87: 0 | Z87: 0 | AA87: 0 | AI87: 0
A88: 0 | B88: 0 | M88: -50000 | N88: -75000 | O88: 0 | P88: 0 | Q88: 0 | V88: 0 | W88: 0 | X88: 0 | Y88: 0 | Z88: 0 | AA88: 0 | AI88: 0
A89: 0 | B89: 0 | M89: -50000 | N89: -75000 | O89: 0 | P89: 0 | Q89: 0 | V89: 0 | W89: 0 | X89: 0 | Y89: 0 | Z89: 0 | AA89: 0 | AI89: 0
A90: 0 | B90: 0 | M90: -50000 | N90: -75000 | O90: 0 | P90: 0 | Q90: 0 | V90: 0 | W90: 0 | X90: 0 | Y90: 0 | Z90: 0 | AA90: 0 | AI90: 0
A91: 0 | B91: 0 | M91: -50000 | N91: -75000 | O91: 0 | P91: 0 | Q91: 0 | V91: 0 | W91: 0 | X91: 0 | Y91: 0 | Z91: 0 | AA91: 0 | AI91: 0
A92: 0 | B92: 0 | M92: -50000 | N92: -75000 | O92: 0 | P92: 0 | Q92: 0 | V92: 0 | W92: 0 | X92: 0 | Y92: 0 | Z92: 0 | AA92: 0 | AI92: 0
A93: 0 | B93: 0 | M93: -50000 | N93: -75000 | O93: 0 | P93: 0 | Q93: 0 | V93: 0 | W93: 0 | X93: 0 | Y93: 0 | Z93: 0 | AA93: 0 | AI93: 0
A94: 0 | B94: 0 | M94: -50000 | N94: -75000 | O94: 0 | P94: 0 | Q94: 0 | V94: 0 | W94: 0 | X94: 0 | Y94: 0 | Z94: 0 | AA94: 0 | AI94: 0
A95: 0 | B95: 0 | M95: -50000 | N95: -75000 | O95: 0 | P95: 0 | Q95: 0 | V95: 0 | W95: 0 | X95: 0 | Y95: 0 | Z95: 0 | AA95: 0 | AI95: 0
A96: 0 | B96: 0 | M96: -50000 | N96: -75000 | O96: 0 | P96: 0 | Q96: 0 | V96: 0 | W96: 0 | X96: 0 | Y96: 0 | Z96: 0 | AA96: 0 | AI96: 0
A97: 0 | B97: 0 | M97: -50000 | N97: -75000 | O97: 0 | P97: 0 | Q97: 0 | V97: 0 | W97: 0 | X97: 0 | Y97: 0 | Z97: 0 | AA97: 0 | AI97: 0
A98: 0 | B98: 0 | M98: -50000 | N98: -75000 | O98: 0 | P98: 0 | Q98: 0 | V98: 0 | W98: 0 | X98: 0 | Y98: 0 | Z98: 0 | AA98: 0 | AI98: 0
A99: 0 | B99: 0 | M99: -50000 | N99: -75000 | O99: 0 | P99: 0 | Q99: 0 | V99: 0 | W99: 0 | X99: 0 | Y99: 0 | Z99: 0 | AA99: 0 | AI99: 0
A100: 0 | B100: 0 | M100: -50000 | N100: -75000 | O100: 0 | P100: 0 | Q100: 0 | V100: 0 | W100: 0 | X100: 0 | Y100: 0 | Z100: 0 | AA100: 0 | AI100: 0
A101: 0 | B101: 0 | M101: -50000 | N101: -75000 | O101: 0 | P101: 0 | Q101: 0 | V101: 0 | W101: 0 | X101: 0 | Y101: 0 | Z101: 0 | AA101: 0 | AI101: 0
A102: 0 | B102: 0 | M102: -50000 | N102: -75000 | O102: 0 | P102: 0 | Q102: 0 | V102: 0 | W102: 0 | X102: 0 | Y102: 0 | Z102: 0 | AA102: 0 | AI102: 0
A103: 0 | B103: 0 | M103: -50000 | N103: -75000 | O103: 0 | P103: 0 | Q103: 0 | R103: =IF(F103="","",IF(SUM(O103:Q103)<=12500,0,SUM(O103:Q103))) ->  | V103: 0 | W103: 0 | X103: 0 | Y103: 0 | Z103: 0 | AA103: 0 | AC103: =IF(F103="","",ROUND(AB103*0.04,0)) ->  | AD103: =IF(F103="","",(AB103+AC103)) ->  | AE103: =IF(F103="","",ROUNDUP(AD103,-2)) ->  | AF103: =IF(F103="","",IF(F103="","",IF(U103=0,0,IF(U103>AE103,"New Regime","Old Regime")))) ->  | AI103: 0
A104: 0 | B104: 0 | M104: -50000 | N104: -75000 | O104: 0 | P104: 0 | Q104: 0 | V104: 0 | W104: 0 | X104: 0 | Y104: 0 | Z104: 0 | AA104: 0 | AI104: 0
A105: 0 | B105: 0 | M105: -50000 | N105: -75000 | O105: 0 | P105: 0 | Q105: 0 | V105: 0 | W105: 0 | X105: 0 | Y105: 0 | Z105: 0 | AA105: 0 | AI105: 0
A106: 0 | B106: 0 | M106: -50000 | N106: -75000 | O106: 0 | P106: 0 | Q106: 0 | V106: 0 | W106: 0 | X106: 0 | Y106: 0 | Z106: 0 | AA106: 0 | AI106: 0

Sheet HRA Calculator
B1: Prepared By :- Ummed Tarad (GSSS Raimalwada)
B2: Employee Related Details | F2: HRA Calculation
B3: Name of Office:- | F3: Sr. No. | G3: Perticulars | H3: Amount (in Rs.) | I3: Examption Amount (in Rs.)
B4: Type of official Location :- | C4: Rural Area | F4: 1 | G4: Actual HRA received | H4: =M12 -> ₹ 99,432 | I4: =H4 -> ₹ 99,432 | L4: Basic | M4: =C8 -> ₹ 45,100 | N4: =ROUND(M4*103%,-2) -> ₹ 46,500 | P4: =MIN(I4:I9) -> -₹ 75,510
B5: Name of Employee :- | C5: Ummed | F5: 2 | G5: (i) Rent Paid (Per month rent*12 months) | H5: =C9*12 -> ₹ 0 | I5: =H5-H7 -> -₹ 75,510 | L5: DA | M5: =ROUND(M4*0.34,0) -> 15334 | N5: =ROUND(N4*0.38,0) -> 17670
B6: Designation of Employee :- | C6: Teacher
B7: Employee's PAN :- | C7: ABCDE1234F | G7: (ii) 10% of (Basic Pay*12 months)+(D.A.*12 months) | H7: =ROUND(M9*10%,0) -> ₹ 75,510 | L7: Total | M7: =M4+M5 -> ₹ 60,434 | N7: =N4+N5 -> ₹ 64,170
B8: Basic Pay (March-2025) :- | C8: ₹ 45,100 | F8: 3 | G8: 50 % of (Basic Pay*12 months)+(D.A.*12 months) For Metro cities (Chennai, Dehli, Mumbai, Kolkata) Or 40 % of (Basic Pay*12 months)+(D.A.*12 months) For Non Metro cities | H8: =IF(C4="Metro City",ROUND(H7*5,0),IF(C4="Non Metro City",ROUND(H7*4,0),H7)) -> ₹ 75,510 | I8: =H8 -> ₹ 75,510 | M8: =M7*4 -> ₹ 241,736 | N8: =N7*8 -> ₹ 513,360
B9: Rent Pay (Per Month) :- | C9: ₹ 0 | L9: 12 Month's Total | M9: =M8+N8 -> ₹ 755,096
B10: House Owner's Name :- | C10: XYZ | F10: Saction 10(13A) {i.e. Exempt HRA u/s 10(13A)} | H10: =IF(P4<0,"Please enter the proper amount of per month's rent",P4) -> Please enter the proper amount of per month's rent | L10: HRA | M10: =IF($D$4="Rural Area",ROUND(M4*0.09,0),ROUND(M4*0.18,0)) -> 8118 | N10: =IF($D$4="Rural Area",ROUND(N4*0.09,0),ROUND(N4*0.18,0)) -> 8370
B11: House Owner's PAN :- | C11: ZYXWV9876U | F11: (Lowest of the three) | M11: =M10*4 -> 32472 | N11: =N10*8 -> 66960
L12: 12 Month's Total | M12: =M11+N11 -> ₹ 99,432
B13: Quarterly Receipt Amount :- | D13: =C9*3 -> ₹ 0 | F13: Yearly Receipt Amount :- | H13: =H5 -> ₹ 0
